[Event "44th Chess Olympiad Women 2022"]
[Site "Chennai"]
[Date "2022.08.08"]
[Round "10.11"]
[White "Bravo Mallco, Kate Azumi"]
[Black "Eizaguerri Floris, Maria"]
[Result "1/2-1/2"]
[WhiteElo "1958"]
[BlackElo "2176"]
[Annotator "RC"]
[PlyCount "116"]
[EventDate "2022.??.??"]
[TimeControl "60"]

1. e4 {[%emt 0:00:04]} c5 {[%emt 0:00:07]} 2. Nf3 {[%emt 0:00:08]} d6 {[%emt 0:
00:00]} 3. d4 {[%emt 0:00:07]} cxd4 {[%emt 0:00:05]} 4. Nxd4 {[%emt 0:00:06]}
Nf6 {[%emt 0:00:04]} 5. Nc3 {[%emt 0:00:44]} a6 {[%emt 0:00:06]} 6. Bg5 {
[%emt 0:00:12]} e6 {[%emt 0:00:05]} 7. f4 {[%emt 0:00:06]} Be7 {[%emt 0:00:05]}
8. Qf3 {[%emt 0:00:19]} Qc7 {[%emt 0:00:05]} 9. O-O-O {[%emt 0:00:11]} Nbd7 {
[%emt 0:00:06]} 10. g4 {[%emt 0:01:04]} h6 {[%emt 0:00:05]} 11. Bxf6 {[%emt 0:
00:00]} Bxf6 {[%emt 0:00:06]} 12. h4 {[%emt 0:04:08]} Nb6 {[%emt 0:00:39]} 13.
g5 {[%emt 0:05:27]} Bxd4 {[%emt 0:00:07]} 14. Rxd4 {[%emt 0:00:21]} Qc5 {
[%emt 0:00:23]} 15. Rd2 {[%emt 0:12:26]} Bd7 {[%emt 0:01:33]} 16. Bd3 {[%emt 0:
00:00]} O-O-O {[%emt 0:10:02]} 17. Rhd1 {[%emt 0:16:11]} Na4 {[%emt 0:11:54]}
18. Nxa4 {[%emt 0:00:30]} Bxa4 {[%emt 0:00:06]} 19. Kb1 {[%emt 0:20:08]} Kb8 {
[%emt 0:01:46]} 20. Bf1 {[%emt 0:00:59]} Rc8 {[%emt 0:09:07]} 21. Rc1 {[%emt 0:
00:00]} hxg5 {[%emt 0:03:58]} 22. hxg5 {[%emt 0:00:03]} Bc6 {[%emt 0:01:06]}
23. Bd3 {[%emt 0:08:50]} Rh4 {[%emt 0:05:13]} 24. Qg3 {[%emt 0:04:07]} Rch8 {
[%emt 0:00:40]} 25. g6 {[%emt 0:00:34]} f6 {[%emt 0:02:15]} 26. Rcd1 {[%emt 0:
00:00]} e5 {[%emt 0:14:33]} 27. f5 {[%emt 0:02:02]} Bxe4 {[%emt 0:10:45]} 28.
Bxe4 {[%emt 0:00:03]} Rxe4 {[%emt 0:00:07]} 29. Qb3 {[%emt 0:01:02]} Rc4 {
[%emt 0:03:19]} 30. a3 {[%emt 0:05:51]} Rc8 {[%emt 0:00:34]} 31. Rxd6 {[%emt 0:
00:00]} Qf2 {[%emt 0:16:57]} 32. Rd7 {[%emt 0:02:39]} R4c7 {[%emt 0:00:47]} 33.
Rxc7 {[%emt 0:00:27]} Rxc7 {[%emt 0:00:06]} 34. Qd3 {[%emt 0:00:18]} Ka7 {
[%emt 0:01:29]} 35. b3 {[%emt 0:01:55]} Qc5 {[%emt 0:03:29]} 36. Kb2 {[%emt 0:
00:00]} Qc6 {[%emt 0:00:30]} 37. Qe3+ {[%emt 0:01:57]} b6 {[%emt 0:00:06]} 38.
Rd2 {[%emt 0:00:42]} e4 {[%emt 0:02:13]} 39. Re2 {[%emt 0:00:21]} Re7 {[%emt 0:
00:00]} 40. Qd4 {[%emt 0:00:29]} Kb7 {[%emt 0:01:28]} 41. Re3 {[%emt 0:30:24]}
Re5 {[%emt 0:05:49]} 42. Re2 {[%emt 0:00:00]} a5 {[%emt 0:03:46]} 43. a4 {
[%emt 0:00:00]} Kc7 {[%emt 0:03:24]} 44. c3 {[%emt 0:00:00]} Qc5 {[%emt 0:00:
00]} 45. Rxe4 {[%emt 0:00:00]} Qxd4 {[%emt 0:00:14]} 46. Rxd4 {[%emt 0:00:00]}
Rxf5 {[%emt 0:00:06]} 47. Rc4+ {[%emt 0:00:00]} Kd6 {[%emt 0:00:31]} 48. Rd4+ {
[%emt 0:00:00]} Rd5 {[%emt 0:02:20]} 49. Rxd5+ {[%emt 0:00:00]} Kxd5 {[%emt 0:
00:00]} 50. Kc2 {[%emt 0:00:00]} Ke4 {[%emt 0:00:05]} 51. Kd2 {[%emt 0:00:00]}
Kf5 {[%emt 0:02:37]} 52. b4 {[%emt 0:00:48]} Kxg6 {[%emt 0:00:07]} 53. c4 {
[%emt 0:00:34]} Kf7 {[%emt 0:02:05]} 54. c5 {[%emt 0:00:11]} Ke7 {[%emt 0:00:
00]} 55. cxb6 {[%emt 0:00:12]} Kd7 {[%emt 0:00:28]} 56. bxa5 {[%emt 0:00:03]}
Kc6 {[%emt 0:00:30]} 57. Ke3 {[%emt 0:00:03]} g5 {[%emt 0:01:01]} 58. Ke4 {
[%emt 0:00:08]} g4 {[%emt 0:01:05]} 1/2-1/2

[Event "44th Chess Olympiad Women 2022"]
[Site "Chennai"]
[Date "2022.08.08"]
[Round "10.11"]
[White "Caballero Quijano, Mitzy Mishell"]
[Black "Garcia Martin, Marta"]
[Result "0-1"]
[WhiteElo "2035"]
[BlackElo "2305"]
[Annotator "RC"]
[PlyCount "80"]
[EventDate "2022.??.??"]
[TimeControl "60"]

1. d4 {[%emt 0:00:03]} Nf6 {[%emt 0:00:11]} 2. Nf3 {[%emt 0:00:06]} c5 {
[%emt 0:00:07]} 3. d5 {[%emt 0:00:09]} b5 {[%emt 0:00:07]} 4. Bg5 {[%emt 0:00:
00]} Ne4 {[%emt 0:00:15]} 5. Bf4 {[%emt 0:01:52]} Bb7 {[%emt 0:00:20]} 6. Qd3 {
[%emt 0:04:22]} f5 {[%emt 0:01:19]} 7. Nbd2 {[%emt 0:03:46]} c4 {[%emt 0:00:34]
} 8. Qd4 {[%emt 0:01:06]} Na6 {[%emt 0:01:20]} 9. c3 {[%emt 0:06:29]} Nc7 {
[%emt 0:01:21]} 10. Be5 {[%emt 0:14:14]} d6 {[%emt 0:39:40]} 11. Bxg7 {[%emt 0:
00:00]} e5 {[%emt 0:03:20]} 12. Bxe5 {[%emt 0:00:22]} dxe5 {[%emt 0:00:04]} 13.
Qxe5+ {[%emt 0:00:05]} Qe7 {[%emt 0:00:04]} 14. Qxh8 {[%emt 0:34:06]} Nf6 {
[%emt 0:00:15]} 15. Nd4 {[%emt 0:08:17]} Bxd5 {[%emt 0:33:13]} 16. Nxf5 {
[%emt 0:00:08]} Qe5 {[%emt 0:00:30]} 17. e4 {[%emt 0:01:38]} Bxe4 {[%emt 0:00:
00]} 18. Nxe4 {[%emt 0:14:12]} Qxe4+ {[%emt 0:00:14]} 19. Ne3 {[%emt 0:00:01]}
Kf7 {[%emt 0:03:52]} 20. Be2 {[%emt 0:00:42]} Bc5 {[%emt 0:08:23]} 21. Qxa8 {
[%emt 0:01:20]} Qxa8 {[%emt 0:00:24]} 22. a4 {[%emt 0:02:18]} Bxe3 {[%emt 0:00:
00]} 23. fxe3 {[%emt 0:00:01]} Qxg2 {[%emt 0:00:34]} 24. Rf1 {[%emt 0:00:05]}
b4 {[%emt 0:00:35]} 25. Bxc4+ {[%emt 0:01:20]} Ke7 {[%emt 0:00:06]} 26. O-O-O {
[%emt 0:00:12]} bxc3 {[%emt 0:00:37]} 27. bxc3 {[%emt 0:00:06]} Qc6 {[%emt 0:
00:00]} 28. Rf4 {[%emt 0:02:22]} Ne6 {[%emt 0:00:17]} 29. Rh4 {[%emt 0:00:27]}
Qxa4 {[%emt 0:00:26]} 30. Rf1 {[%emt 0:00:01]} Nc5 {[%emt 0:00:47]} 31. Kd2 {
[%emt 0:00:18]} Nfe4+ {[%emt 0:00:27]} 32. Rxe4+ {[%emt 0:00:38]} Nxe4+ {
[%emt 0:00:05]} 33. Kd3 {[%emt 0:00:06]} Nc5+ {[%emt 0:00:50]} 34. Kd4 {
[%emt 0:00:10]} Nb3+ {[%emt 0:00:28]} 35. Kd3 {[%emt 0:00:26]} Nc5+ {[%emt 0:
00:00]} 36. Kd4 {[%emt 0:00:04]} Ne6+ {[%emt 0:00:13]} 37. Kd3 {[%emt 0:00:06]}
Qd7+ {[%emt 0:00:17]} 38. Kc2 {[%emt 0:00:39]} Qc6 {[%emt 0:00:19]} 39. Kb3 {
[%emt 0:02:01]} Nc5+ {[%emt 0:00:46]} 40. Kb4 {[%emt 0:00:44]} a5+ {[%emt 0:00:
00]} 0-1

[Event "44th Chess Olympiad Women 2022"]
[Site "Chennai"]
[Date "2022.08.08"]
[Round "10.11"]
[White "Calzetta Ruiz, Monica"]
[Black "Paredes Bustamante, Paula Elizab"]
[Result "1/2-1/2"]
[WhiteElo "2230"]
[BlackElo "2162"]
[Annotator "NA RC"]
[PlyCount "61"]
[EventDate "2022.??.??"]
[TimeControl "60"]

1. e4 {[%emt 0:00:06]} c5 {[%emt 0:00:01]} 2. Nf3 {[%emt 0:00:12]} d6 {[%emt 0:
00:00]} 3. d4 {[%emt 0:00:08]} cxd4 {[%emt 0:00:02]} 4. Nxd4 {[%emt 0:00:09]}
Nf6 {[%emt 0:00:03]} 5. Nc3 {[%emt 0:00:10]} a6 {[%emt 0:00:01]} 6. Be2 {
[%emt 0:00:13]} e5 {[%emt 0:00:07]} 7. Nb3 {[%emt 0:00:05]} Be7 {[%emt 0:00:09]
} 8. Qd3 {[%emt 0:00:39]} Nc6 {[%emt 0:02:15]} 9. a3 {[%emt 0:00:29]} Be6 {
[%emt 0:00:44]} 10. Nd5 {[%emt 0:00:25]} Bxd5 {[%emt 0:01:14]} 11. exd5 {
[%emt 0:00:08]} e4 {[%emt 0:07:43]} 12. Qd1 {[%emt 0:25:32]} Ne5 {[%emt 0:00:
00]} 13. O-O {[%emt 0:02:03]} O-O {[%emt 0:04:38]} 14. c4 {[%emt 0:10:03]} Qd7
{[%emt 0:16:09]} 15. Nd4 {[%emt 0:08:28]} Rfc8 {[%emt 0:02:35]} 16. b3 {
[%emt 0:00:53]} b5 {[%emt 0:12:38]} 17. f4 {[%emt 0:18:10]} exf3 {[%emt 0:00:
00]} 18. Nxf3 {[%emt 0:00:08]} bxc4 {[%emt 0:16:14]} 19. Nxe5 {[%emt 0:01:00]}
dxe5 {[%emt 0:00:04]} 20. Bxc4 {[%emt 0:01:14]} Bc5+ {[%emt 0:00:48]} 21. Kh1 {
[%emt 0:00:14]} Bd4 {[%emt 0:02:52]} 22. Ra2 {[%emt 0:16:56]} Ne4 {[%emt 0:00:
00]} 23. Qf3 {[%emt 0:00:39]} Nd6 {[%emt 0:00:05]} 24. Rc2 {[%emt 0:00:47]} f5
{[%emt 0:00:19]} 25. Qh3 {[%emt 0:00:55]} Qa7 {[%emt 0:01:20]} 26. Bd2 {
[%emt 0:03:25]} Kh8 {[%emt 0:00:08]} 27. Bb4 {[%emt 0:00:21]} Bc5 {[%emt 0:00:
00]} 28. Bc3 {[%emt 0:04:12]} Bd4 {[%emt 0:00:31]} 29. Bb4 {[%emt 0:00:02]} Bc5
{[%emt 0:00:17]} 30. Bc3 {[%emt 0:00:06]} Bd4 {[%emt 0:02:14]} 31. Bb4 {
[%emt 0:01:54]} 1/2-1/2

[Event "44th Chess Olympiad Women 2022"]
[Site "Chennai"]
[Date "2022.08.08"]
[Round "10.11"]
[White "Vega Gutierrez, Sabrina"]
[Black "Chumpitaz, Ann"]
[Result "1-0"]
[WhiteElo "2366"]
[BlackElo "2278"]
[Annotator "RC"]
[PlyCount "73"]
[EventDate "2022.??.??"]
[TimeControl "60"]

1. e4 {[%emt 0:00:04]} c5 {[%emt 0:00:06]} 2. Nf3 {[%emt 0:00:09]} d6 {[%emt 0:
00:00]} 3. d4 {[%emt 0:00:08]} cxd4 {[%emt 0:00:03]} 4. Nxd4 {[%emt 0:00:07]}
Nf6 {[%emt 0:00:03]} 5. Nc3 {[%emt 0:00:10]} Nc6 {[%emt 0:00:13]} 6. Nb3 {
[%emt 0:02:19]} g6 {[%emt 0:03:23]} 7. Be3 {[%emt 0:00:35]} Bg7 {[%emt 0:00:03]
} 8. Qd2 {[%emt 0:07:49]} Ng4 {[%emt 0:07:16]} 9. Bf4 {[%emt 0:00:00]} h5 {
[%emt 0:17:18]} 10. h3 {[%emt 0:00:00]} Nge5 {[%emt 0:03:46]} 11. Be3 {[%emt 0:
00:00]} Na5 {[%emt 0:13:49]} 12. Nxa5 {[%emt 0:04:24]} Qxa5 {[%emt 0:00:04]}
13. Bd4 {[%emt 0:01:35]} Kf8 {[%emt 0:16:09]} 14. f4 {[%emt 0:00:54]} Nc6 {
[%emt 0:00:05]} 15. Bxg7+ {[%emt 0:00:35]} Kxg7 {[%emt 0:00:02]} 16. O-O-O {
[%emt 0:00:54]} Be6 {[%emt 0:03:13]} 17. Kb1 {[%emt 0:02:09]} Rac8 {[%emt 0:00:
00]} 18. a3 {[%emt 0:02:36]} a6 {[%emt 0:05:08]} 19. Be2 {[%emt 0:22:50]} b5 {
[%emt 0:04:45]} 20. f5 {[%emt 0:00:32]} gxf5 {[%emt 0:03:38]} 21. exf5 {
[%emt 0:09:28]} Bxf5 {[%emt 0:00:29]} 22. g4 {[%emt 0:01:56]} Be6 {[%emt 0:00:
00]} 23. gxh5 {[%emt 0:01:46]} b4 {[%emt 0:03:34]} 24. axb4 {[%emt 0:05:16]}
Qxb4 {[%emt 0:00:11]} 25. Rhg1+ {[%emt 0:11:09]} Kf8 {[%emt 0:00:17]} 26. Qg5 {
[%emt 0:05:03]} Ke8 {[%emt 0:00:06]} 27. Nd5 {[%emt 0:02:20]} Qa5 {[%emt 0:00:
00]} 28. Bg4 {[%emt 0:01:52]} Rb8 {[%emt 0:02:53]} 29. Rgf1 {[%emt 0:06:20]}
Bxg4 {[%emt 0:04:45]} 30. hxg4 {[%emt 0:00:40]} Rf8 {[%emt 0:00:33]} 31. Rfe1 {
[%emt 0:01:29]} Rb7 {[%emt 0:00:32]} 32. Rxe7+ {[%emt 0:01:50]} Rxe7 {[%emt 0:
00:00]} 33. Nf6+ {[%emt 0:00:03]} Kd8 {[%emt 0:00:11]} 34. Rxd6+ {[%emt 0:00:
00]} Rd7 {[%emt 0:00:42]} 35. Rxd7+ {[%emt 0:00:41]} Kc8 {[%emt 0:00:03]} 36.
Qxa5 {[%emt 0:00:42]} Nxa5 {[%emt 0:00:03]} 37. Ra7 {[%emt 0:01:27]} 1-0

[Event "44th Chess Olympiad Women 2022"]
[Site "Chennai"]
[Date "2022.08.08"]
[Round "10.12"]
[White "Blagojevic, Tijana"]
[Black "Alinasab, Mobina"]
[Result "1-0"]
[WhiteElo "2330"]
[BlackElo "2364"]
[Annotator "RC"]
[PlyCount "107"]
[EventDate "2022.??.??"]
[TimeControl "60"]

1. e4 {[%emt 0:00:04]} c5 {[%emt 0:00:20]} 2. Nf3 {[%emt 0:00:07]} d6 {[%emt 0:
00:00]} 3. d4 {[%emt 0:00:06]} cxd4 {[%emt 0:00:08]} 4. Qxd4 {[%emt 0:00:06]}
Nc6 {[%emt 0:00:20]} 5. Bb5 {[%emt 0:00:21]} Bd7 {[%emt 0:00:10]} 6. Qd3 {
[%emt 0:00:29]} Nf6 {[%emt 0:02:19]} 7. Bg5 {[%emt 0:00:29]} e6 {[%emt 0:04:52]
} 8. Nc3 {[%emt 0:00:54]} a6 {[%emt 0:01:06]} 9. Bxc6 {[%emt 0:01:29]} Bxc6 {
[%emt 0:00:16]} 10. Nd4 {[%emt 0:05:42]} Be7 {[%emt 0:11:31]} 11. O-O-O {
[%emt 0:03:49]} O-O {[%emt 0:05:13]} 12. f4 {[%emt 0:00:34]} Qa5 {[%emt 0:00:
00]} 13. h4 {[%emt 0:10:32]} Rfc8 {[%emt 0:08:57]} 14. g4 {[%emt 0:02:31]} Be8
{[%emt 0:15:19]} 15. Rh3 {[%emt 0:15:24]} Qc7 {[%emt 0:08:01]} 16. Bxf6 {
[%emt 0:05:03]} Bxf6 {[%emt 0:01:06]} 17. g5 {[%emt 0:00:11]} Be7 {[%emt 0:00:
00]} 18. f5 {[%emt 0:03:46]} Qc4 {[%emt 0:08:05]} 19. Qf3 {[%emt 0:06:04]} b5 {
[%emt 0:05:28]} 20. fxe6 {[%emt 0:08:53]} fxe6 {[%emt 0:00:36]} 21. b3 {
[%emt 0:00:00]} Qc5 {[%emt 0:01:38]} 22. Nxe6 {[%emt 0:00:34]} Qe5 {[%emt 0:00:
00]} 23. Nd4 {[%emt 0:01:29]} d5 {[%emt 0:03:24]} 24. Nxd5 {[%emt 0:03:03]} Bc5
{[%emt 0:02:25]} 25. Qf5 {[%emt 0:01:08]} Qb8 {[%emt 0:07:32]} 26. b4 {[%emt 0:
00:00]} Bd6 {[%emt 0:00:59]} 27. e5 {[%emt 0:00:05]} Bf8 {[%emt 0:02:12]} 28.
Rf1 {[%emt 0:01:06]} Bg6 {[%emt 0:01:09]} 29. Qe6+ {[%emt 0:00:04]} Kh8 {
[%emt 0:00:08]} 30. h5 {[%emt 0:01:53]} Re8 {[%emt 0:01:39]} 31. Qxg6 {[%emt 0:
00:00]} Qxe5 {[%emt 0:00:28]} 32. Nf6 {[%emt 0:05:12]} gxf6 {[%emt 0:00:51]}
33. Qxf6+ {[%emt 0:00:26]} Qxf6 {[%emt 0:00:53]} 34. gxf6 {[%emt 0:00:04]} Bxb4
{[%emt 0:00:38]} 35. f7 {[%emt 0:01:07]} Re4 {[%emt 0:00:28]} 36. c3 {[%emt 0:
00:00]} Bc5 {[%emt 0:00:37]} 37. Kc2 {[%emt 0:00:11]} Rf8 {[%emt 0:00:27]} 38.
Kd3 {[%emt 0:00:37]} Re5 {[%emt 0:00:31]} 39. Rf6 {[%emt 0:01:26]} Kg7 {
[%emt 0:00:32]} 40. Rxa6 {[%emt 0:00:48]} Kxf7 {[%emt 0:00:29]} 41. Nxb5 {
[%emt 0:35:45]} Rd8+ {[%emt 0:01:50]} 42. Nd4 {[%emt 0:00:00]} Red5 {[%emt 0:
00:00]} 43. Rh4 {[%emt 0:00:00]} Be7 {[%emt 0:04:15]} 44. Rf4+ {[%emt 0:00:00]}
Kg8 {[%emt 0:00:58]} 45. Re4 {[%emt 0:00:00]} R8d7 {[%emt 0:01:49]} 46. h6 {
[%emt 0:00:00]} Rh5 {[%emt 0:06:53]} 47. Rg4+ {[%emt 0:00:00]} Kf8 {[%emt 0:00:
00]} 48. Ke4 {[%emt 0:00:00]} Ke8 {[%emt 0:09:43]} 49. Rg8+ {[%emt 0:00:00]}
Kf7 {[%emt 0:00:47]} 50. Rg7+ {[%emt 0:00:00]} Ke8 {[%emt 0:00:06]} 51. Ra8+ {
[%emt 0:00:00]} Bd8 {[%emt 0:00:29]} 52. Rg8+ {[%emt 0:00:00]} Ke7 {[%emt 0:00:
00]} 53. Nf5+ {[%emt 0:00:00]} Kf6 {[%emt 0:01:31]} 54. Raxd8 {[%emt 0:00:00]}
1-0

[Event "44th Chess Olympiad Women 2022"]
[Site "Chennai"]
[Date "2022.08.08"]
[Round "10.12"]
[White "Masoumi, Sahar"]
[Black "Eric, Jovana"]
[Result "0-1"]
[WhiteElo "1956"]
[BlackElo "2271"]
[Annotator "RC"]
[PlyCount "96"]
[EventDate "2022.??.??"]
[TimeControl "60"]

1. d4 {[%emt 0:00:09]} Nf6 {[%emt 0:00:07]} 2. c4 {[%emt 0:00:05]} e6 {[%emt 0:
00:00]} 3. Nc3 {[%emt 0:00:06]} Bb4 {[%emt 0:00:12]} 4. e3 {[%emt 0:00:11]} O-O
{[%emt 0:00:22]} 5. Bd2 {[%emt 0:00:10]} d5 {[%emt 0:00:27]} 6. Nf3 {[%emt 0:
00:00]} b6 {[%emt 0:00:38]} 7. cxd5 {[%emt 0:00:09]} exd5 {[%emt 0:00:06]} 8.
Bd3 {[%emt 0:00:32]} Bb7 {[%emt 0:00:49]} 9. O-O {[%emt 0:00:13]} Nbd7 {
[%emt 0:00:59]} 10. Ne5 {[%emt 0:01:05]} Be7 {[%emt 0:01:32]} 11. f4 {[%emt 0:
00:00]} c5 {[%emt 0:01:35]} 12. Rf3 {[%emt 0:03:18]} Ne4 {[%emt 0:08:22]} 13.
Be1 {[%emt 0:13:13]} Ndf6 {[%emt 0:05:29]} 14. Ne2 {[%emt 0:11:47]} Nd6 {
[%emt 0:09:06]} 15. g4 {[%emt 0:18:36]} Nfe4 {[%emt 0:03:14]} 16. Rh3 {[%emt 0:
00:00]} Qc8 {[%emt 0:23:49]} 17. Nc3 {[%emt 0:20:30]} c4 {[%emt 0:10:20]} 18.
Rc1 {[%emt 0:02:32]} b5 {[%emt 0:01:03]} 19. Bf1 {[%emt 0:08:01]} f6 {[%emt 0:
00:00]} 20. Nd3 {[%emt 0:03:08]} Nxc3 {[%emt 0:10:15]} 21. Rxc3 {[%emt 0:00:07]
} Ne4 {[%emt 0:00:13]} 22. Rc1 {[%emt 0:00:22]} Bc6 {[%emt 0:02:50]} 23. Nf2 {
[%emt 0:01:09]} Nd6 {[%emt 0:06:24]} 24. Bg2 {[%emt 0:03:13]} g6 {[%emt 0:00:
00]} 25. Rg3 {[%emt 0:02:43]} Kh8 {[%emt 0:02:44]} 26. h4 {[%emt 0:00:58]} a5 {
[%emt 0:01:03]} 27. Kh1 {[%emt 0:02:16]} Qd7 {[%emt 0:02:18]} 28. Bh3 {[%emt 0:
00:00]} b4 {[%emt 0:00:25]} 29. Bg2 {[%emt 0:01:05]} Rab8 {[%emt 0:01:28]} 30.
Qe2 {[%emt 0:01:28]} a4 {[%emt 0:01:51]} 31. e4 {[%emt 0:00:35]} dxe4 {[%emt 0:
00:00]} 32. Nxe4 {[%emt 0:00:30]} Nxe4 {[%emt 0:00:34]} 33. Bxe4 {[%emt 0:00:
00]} Bb5 {[%emt 0:02:26]} 34. Qd2 {[%emt 0:00:52]} f5 {[%emt 0:01:18]} 35. gxf5
{[%emt 0:00:49]} gxf5 {[%emt 0:00:05]} 36. Bg2 {[%emt 0:00:28]} Bxh4 {[%emt 0:
00:00]} 37. Re3 {[%emt 0:00:36]} Bf6 {[%emt 0:00:18]} 38. Rd1 {[%emt 0:00:31]}
Rfd8 {[%emt 0:01:27]} 39. d5 {[%emt 0:00:27]} c3 {[%emt 0:00:13]} 40. bxc3 {
[%emt 0:00:11]} bxc3 {[%emt 0:00:41]} 41. Qc2 {[%emt 0:30:27]} Qg7 {[%emt 0:00:
00]} 42. Rxc3 {[%emt 0:00:00]} Re8 {[%emt 0:03:24]} 43. Rcd3 {[%emt 0:00:00]}
Bxd3 {[%emt 0:00:42]} 44. Qxd3 {[%emt 0:00:00]} Rb2 {[%emt 0:02:37]} 45. Bd2 {
[%emt 0:00:00]} Qg4 {[%emt 0:00:16]} 46. Qf3 {[%emt 0:01:32]} Qh4+ {[%emt 0:00:
00]} 47. Kg1 {[%emt 0:01:53]} Bd4+ {[%emt 0:00:43]} 48. Kf1 {[%emt 0:00:36]}
Rxd2 {[%emt 0:00:05]} 0-1

[Event "44th Chess Olympiad Women 2022"]
[Site "Chennai"]
[Date "2022.08.08"]
[Round "10.12"]
[White "Velikic, Adela"]
[Black "Mahdian, Anousha"]
[Result "1/2-1/2"]
[WhiteElo "2273"]
[BlackElo "2161"]
[Annotator "NA RC"]
[PlyCount "98"]
[EventDate "2022.??.??"]
[TimeControl "60"]

1. e4 {[%emt 0:00:03]} c6 {[%emt 0:00:04]} 2. d4 {[%emt 0:00:05]} d5 {[%emt 0:
00:00]} 3. e5 {[%emt 0:00:06]} Bf5 {[%emt 0:00:05]} 4. Nf3 {[%emt 0:00:06]} e6
{[%emt 0:00:07]} 5. Be2 {[%emt 0:00:06]} Nd7 {[%emt 0:00:15]} 6. O-O {[%emt 0:
00:00]} a5 {[%emt 0:00:03]} 7. a4 {[%emt 0:10:41]} f6 {[%emt 0:00:06]} 8. Re1 {
[%emt 0:15:15]} fxe5 {[%emt 0:06:01]} 9. dxe5 {[%emt 0:01:04]} Bc5 {[%emt 0:00:
00]} 10. Nbd2 {[%emt 0:12:18]} Qb6 {[%emt 0:20:23]} 11. Rf1 {[%emt 0:00:31]}
Nh6 {[%emt 0:26:43]} 12. Nb3 {[%emt 0:15:53]} Ng4 {[%emt 0:04:02]} 13. Nxc5 {
[%emt 0:10:32]} Qxc5 {[%emt 0:00:17]} 14. Bd3 {[%emt 0:08:13]} O-O {[%emt 0:00:
00]} 15. Bxf5 {[%emt 0:05:07]} Rxf5 {[%emt 0:17:41]} 16. Nd4 {[%emt 0:01:16]}
Rxe5 {[%emt 0:00:09]} 17. Qxg4 {[%emt 0:04:45]} Re4 {[%emt 0:00:02]} 18. Nxe6 {
[%emt 0:01:23]} Rxg4 {[%emt 0:00:03]} 19. Nxc5 {[%emt 0:00:04]} Nxc5 {[%emt 0:
00:00]} 20. b3 {[%emt 0:04:37]} Re4 {[%emt 0:07:44]} 21. Ba3 {[%emt 0:01:37]}
b6 {[%emt 0:03:55]} 22. f3 {[%emt 0:02:56]} Re3 {[%emt 0:00:25]} 23. Rfe1 {
[%emt 0:01:08]} Rae8 {[%emt 0:00:10]} 24. Rxe3 {[%emt 0:01:37]} Rxe3 {[%emt 0:
00:00]} 25. Bxc5 {[%emt 0:00:59]} bxc5 {[%emt 0:00:05]} 26. Kf2 {[%emt 0:00:28]
} Rc3 {[%emt 0:00:31]} 27. Ra2 {[%emt 0:00:28]} c4 {[%emt 0:00:24]} 28. Rb2 {
[%emt 0:01:12]} cxb3 {[%emt 0:00:05]} 29. cxb3 {[%emt 0:00:10]} c5 {[%emt 0:00:
00]} 30. Ke2 {[%emt 0:00:13]} Rc1 {[%emt 0:00:47]} 31. Rd2 {[%emt 0:00:47]} d4
{[%emt 0:00:28]} 32. Rb2 {[%emt 0:00:31]} c4 {[%emt 0:00:31]} 33. bxc4 {
[%emt 0:00:45]} Rxc4 {[%emt 0:00:02]} 34. Ra2 {[%emt 0:00:41]} Kf7 {[%emt 0:00:
00]} 35. Kd3 {[%emt 0:00:20]} Rb4 {[%emt 0:00:04]} 36. Ke4 {[%emt 0:00:38]} Ke6
{[%emt 0:00:09]} 37. f4 {[%emt 0:00:25]} h5 {[%emt 0:01:59]} 38. g3 {[%emt 0:
00:00]} g6 {[%emt 0:00:37]} 39. Ra3 {[%emt 0:00:45]} Rc4 {[%emt 0:00:22]} 40.
h3 {[%emt 0:00:33]} Rb4 {[%emt 0:00:15]} 41. g4 {[%emt 0:10:43]} hxg4 {[%emt 0:
00:00]} 42. hxg4 {[%emt 0:00:39]} d3+ {[%emt 0:01:24]} 43. Ke3 {[%emt 0:01:03]}
d2 {[%emt 0:00:10]} 44. f5+ {[%emt 0:03:48]} gxf5 {[%emt 0:00:04]} 45. gxf5+ {
[%emt 0:00:04]} Kxf5 {[%emt 0:00:03]} 46. Kxd2 {[%emt 0:00:05]} Ke5 {[%emt 0:
00:00]} 47. Kc2 {[%emt 0:02:17]} Kd5 {[%emt 0:00:17]} 48. Rd3+ {[%emt 0:00:46]}
Kc5 {[%emt 0:00:04]} 49. Rc3+ {[%emt 0:00:21]} Kd5 {[%emt 0:00:32]} 1/2-1/2

[Event "44th Chess Olympiad Women 2022"]
[Site "Chennai"]
[Date "2022.08.08"]
[Round "10.12"]
[White "Zahedifar, Anahita"]
[Black "Gajcin, Marina"]
[Result "1/2-1/2"]
[WhiteElo "2160"]
[BlackElo "2271"]
[Annotator "NA RC"]
[PlyCount "88"]
[EventDate "2022.??.??"]
[TimeControl "60"]

1. d4 {[%emt 0:00:17]} Nf6 {[%emt 0:00:13]} 2. c4 {[%emt 0:00:04]} c5 {[%emt 0:
00:00]} 3. d5 {[%emt 0:00:06]} g6 {[%emt 0:00:16]} 4. Nc3 {[%emt 0:01:04]} d6 {
[%emt 0:00:14]} 5. e4 {[%emt 0:01:23]} Bg7 {[%emt 0:00:09]} 6. f4 {[%emt 0:00:
00]} O-O {[%emt 0:00:13]} 7. Nf3 {[%emt 0:00:08]} e6 {[%emt 0:00:22]} 8. Be2 {
[%emt 0:00:45]} exd5 {[%emt 0:00:24]} 9. cxd5 {[%emt 0:00:06]} Bg4 {[%emt 0:00:
00]} 10. O-O {[%emt 0:00:49]} Nbd7 {[%emt 0:01:07]} 11. h3 {[%emt 0:03:52]}
Bxf3 {[%emt 0:00:17]} 12. Bxf3 {[%emt 0:00:04]} Ne8 {[%emt 0:00:27]} 13. Qb3 {
[%emt 0:10:22]} Rb8 {[%emt 0:05:18]} 14. a4 {[%emt 0:02:19]} a6 {[%emt 0:02:21]
} 15. Be3 {[%emt 0:02:06]} b5 {[%emt 0:09:07]} 16. axb5 {[%emt 0:02:22]} Nc7 {
[%emt 0:01:34]} 17. Qc2 {[%emt 0:10:36]} axb5 {[%emt 0:03:17]} 18. e5 {[%emt 0:
00:00]} dxe5 {[%emt 0:10:14]} 19. f5 {[%emt 0:01:40]} b4 {[%emt 0:10:20]} 20.
Na4 {[%emt 0:03:17]} Nb5 {[%emt 0:10:20]} 21. Nxc5 {[%emt 0:05:30]} Nxc5 {
[%emt 0:16:43]} 22. Bxc5 {[%emt 0:02:17]} Rc8 {[%emt 0:02:48]} 23. Qf2 {
[%emt 0:15:21]} e4 {[%emt 0:02:27]} 24. Bxe4 {[%emt 0:01:11]} Rxc5 {[%emt 0:00:
00]} 25. f6 {[%emt 0:00:14]} Bxf6 {[%emt 0:00:31]} 26. Qxf6 {[%emt 0:00:12]}
Nd6 {[%emt 0:01:09]} 27. Qxd8 {[%emt 0:02:25]} Rxd8 {[%emt 0:00:01]} 28. Bf3 {
[%emt 0:00:19]} Rc2 {[%emt 0:05:04]} 29. Rf2 {[%emt 0:03:24]} Rxf2 {[%emt 0:00:
00]} 30. Kxf2 {[%emt 0:02:56]} Nc4 {[%emt 0:02:51]} 31. b3 {[%emt 0:05:27]} Nd2
{[%emt 0:02:25]} 32. Ra4 {[%emt 0:02:39]} Nxb3 {[%emt 0:02:40]} 33. Rxb4 {
[%emt 0:00:14]} Nd2 {[%emt 0:02:00]} 34. Rd4 {[%emt 0:00:32]} Nxf3 {[%emt 0:00:
00]} 35. Kxf3 {[%emt 0:00:05]} Kf8 {[%emt 0:02:02]} 36. Ke4 {[%emt 0:02:14]}
Re8+ {[%emt 0:02:41]} 37. Kf4 {[%emt 0:02:39]} f6 {[%emt 0:00:35]} 38. Ra4 {
[%emt 0:03:47]} Re7 {[%emt 0:00:27]} 39. g4 {[%emt 0:00:55]} g5+ {[%emt 0:00:
00]} 40. Kf5 {[%emt 0:02:03]} Kf7 {[%emt 0:00:08]} 41. Re4 {[%emt 0:30:04]} Rd7
{[%emt 0:13:26]} 42. Rd4 {[%emt 0:00:00]} Re7 {[%emt 0:06:12]} 43. Re4 {
[%emt 0:00:00]} Rd7 {[%emt 0:01:10]} 44. Rd4 {[%emt 0:00:00]} Re7 {[%emt 0:00:
00]} 1/2-1/2